fUST/lending_fUST_20260120
["ID","MTS","AMOUNT","RATE_DAILY","PERIOD"]
[402815478,1768919438226,-151.0,0.000112,2]
[402815480,1768919438235,-151.0,0.000112,2]
[402815482,1768919438247,-151.0,0.000113,2]
[402815485,1768919438259,-151.0,0.000114,2]
[402815487,1768919438269,-151.0,0.000114,2]
[402815489,1768919438279,-151.0,0.000115,2]
[402815491,1768919438289,-151.0,0.000115,2]
[402815493,1768919438300,-1041.66666667,0.00012657,2]
[402815495,1768919438309,-311.26514306,0.0001272,2]
[402815496,1768919438319,-6047.85957029,0.000129,2]
[402815498,1768919438329,-6047.85957025,0.000129,2]
[402815500,1768919438339,-153.0,0.00013478,2]
[402815502,1768919438350,-153.0,0.00013478,2]
[402815504,1768919438360,-153.0,0.00013478,2]
[402815506,1768919438370,-2150.738,0.00013581,2]
[402815508,1768919438379,-151.0,0.00013581,2]
[402815510,1768919438389,-250.0,0.00013581,2]
[402815512,1768919438398,-151.0,0.00013581,2]
[402815533,1768919438615,-250.0,0.00013581,2]
[402815535,1768919438635,-250.0,0.00013581,2]
[402815536,1768919438645,-151.0,0.00013581,2]
[402815537,1768919438655,-250.0,0.00013581,2]
[402815538,1768919438665,-280.41062468,0.00013581,2]
[402815539,1768919438676,-151.0,0.00013581,2]
[402815540,1768919438687,-250.0,0.00013581,2]
[402815541,1768919438696,-250.0,0.00013581,2]
[402815542,1768919438706,-250.0,0.00013581,2]
[402815543,1768919438716,-325.83569503,0.00013581,2]
[402815544,1768919438725,-500.0,0.00013581,2]
[402815545,1768919438734,-500.0,0.00013581,2]
[402815546,1768919438750,-500.0,0.00013581,2]
[402815547,1768919438760,-500.0,0.00013581,2]
[402815548,1768919438771,-500.0,0.00013581,2]
[402815549,1768919438781,-591.95491747,0.00013581,2]
[402815550,1768919438791,-151.0,0.00013581,2]
[402815551,1768919438801,-151.0,0.00013581,2]
[402815552,1768919438811,-151.0,0.00013581,2]
[402815553,1768919438821,-162.380719,0.00013581,2]
[402815554,1768919438831,-151.0,0.00013581,2]
[402815555,1768919438841,-168.3888056,0.00013581,2]
[402815556,1768919438850,-151.0,0.00013581,2]
[402815557,1768919438860,-174.61919141,0.00013581,2]
[402815558,1768919438870,-151.0,0.00013581,2]
[402815559,1768919438880,-500.0,0.00013699,2]
[402815560,1768919438890,-500.0,0.00013699,2]
[402815561,1768919438900,-2000.0,0.00013699,7]
[402815562,1768919438910,-500.0,0.00013699,2]
[402815563,1768919438921,-500.0,0.00013699,2]
[402815564,1768919438931,-219.68814819,0.00013699,2]
[402815565,1768919438940,-281.0,0.000137,2]
[402815566,1768919438950,-100000.0,0.0001399,2]
[402815567,1768919438963,-3608.22577453,0.00014,7]
[402815568,1768919438975,-2230.315306,0.00014129,2]
[402815569,1768919438985,-2148.0,0.00014182,2]
[402815570,1768919438998,-629.0,0.00014182,2]
[402815571,1768919439012,-417.0,0.00014182,2]
[402815572,1768919439023,-178.0,0.00014182,2]
[402815573,1768919439035,-331.25612035,0.00014247,2]
[402815574,1768919439047,-1000.0,0.00014247,2]
[402815575,1768919439058,-5000.0,0.0001451,2]
[402815576,1768919439069,-2000.0,0.00014514,7]
[402815577,1768919439080,-2312.83697232,0.00014677,2]
[402815578,1768919439090,-358.74626658,0.0001472,2]
[402815579,1768919439101,-1500.0,0.00014795,2]
[402815580,1768919439112,-595.41263831,0.000149,2]
[402815581,1768919439123,-3545.59172598,0.00015,2]
[402815582,1768919439134,-151.11503829,0.00015,2]
[402815583,1768919439143,-5000.0,0.00015,2]
[402815584,1768919439154,-2398.4119403,0.00015225,2]
[402815585,1768919439164,-2000.0,0.00015329,7]
[402815586,1768919439174,-2000.0,0.00015342,2]
[402815587,1768919439185,-549.0286876,0.000154,2]
[402815588,1768919439195,-6047.85957025,0.00015436,2]
[402815589,1768919439205,-1411.562776,0.00015436,2]
[402815590,1768919439214,-2487.15318209,0.00015773,2]
[402815591,1768919439224,-2500.0,0.0001589,2]
[402815592,1768919439234,-216.04290784,0.00016,2]
[402815593,1768919439244,-2000.0,0.00016144,7]
[402815594,1768919439257,-160.0,0.00016174,2]
[402815595,1768919439267,-160.0,0.00016174,2]
[402815596,1768919439277,-160.0,0.00016174,2]
[402815597,1768919439287,-160.0,0.00016174,2]
[402815598,1768919439296,-288.2,0.000162,2]
[402815599,1768919439305,-319.0,0.00016247,3]
[402815600,1768919439315,-511.51329434,0.0001629,2]
[402815601,1768919439325,-500.0,0.0001629,2]
[402815602,1768919439335,-2579.17784983,0.00016321,2]
[402815603,1768919439344,-198.0,0.00016438,2]
[402815604,1768919439354,-500.0,0.00016438,2]
[402815605,1768919439363,-280.16439785,0.00016438,2]
[402815606,1768919439373,-3000.0,0.00016438,2]
[402815607,1768919439383,-406.2273901,0.0001672,2]
[402815608,1768919439393,-1013.0282973,0.00016836,2]
[402815609,1768919439403,-1654.45718551,0.00016869,2]
[402815610,1768919439412,-2000.0,0.00016959,7]
[402815611,1768919439421,-2000.0,0.00016968,2]
[402815612,1768919439435,-61274.39127763,0.00017,2]
[402815613,1768919439444,-58782.07930155,0.0001701,3]
[402815614,1768919439453,-2148.0,0.00017182,2]
[402815615,1768919439464,-629.0,0.00017182,2]
[402815616,1768919439473,-417.0,0.00017182,2]
[402815618,1768919439484,-178.0,0.00017182,2]
[402815619,1768919439493,-198.0,0.00017216,2]
[402815621,1768919439507,-192.0,0.00017342,3]
[402815623,1768919439517,-5000.0,0.00017412,2]
[402815625,1768919439528,-2139.15809938,0.000176,2]
[402815626,1768919439538,-2000.0,0.00017774,7]
[402815627,1768919439549,-537.11,0.000178,3]
[402815628,1768919439560,-198.0,0.00017995,2]
[402815629,1768919439571,-187.82414902,0.00018,2]
[402815630,1768919439581,-244.57443698,0.00018,2]
[402815631,1768919439593,-352.64193347,0.00018,2]
[402815632,1768919439603,-1634.04927308,0.00018,2]
[402815633,1768919439613,-201.67833908,0.00018,2]
[402815634,1768919439624,-338.66165243,0.00018,2]
[402815636,1768919439634,-152157.17290897,0.00018,2]
[402815638,1768919439643,-279.58,0.000181,2]
[402815639,1768919439654,-187.82414902,0.000182,2]
[402815640,1768919439664,-244.57443698,0.000182,2]
[402815641,1768919439674,-352.64193347,0.000182,2]
[402815642,1768919439684,-1634.04927308,0.000182,2]
[402815643,1768919439695,-201.67833908,0.000182,2]
[402815644,1768919439705,-338.66165243,0.000182,2]
[402815645,1768919439715,-6047.85957025,0.00018283,2]
[402815646,1768919439726,-187.82414902,0.000184,2]
[402815647,1768919439736,-244.57443698,0.000184,2]
[402815648,1768919439753,-352.64193347,0.000184,2]
[402815649,1768919439764,-1634.04927308,0.000184,2]
[402815650,1768919439774,-201.67833908,0.000184,2]
[402815651,1768919439785,-338.66165243,0.000184,2]
[402815652,1768919439795,-193.0,0.00018438,3]
[402815653,1768919439805,-187.82414902,0.000185,2]
[402815654,1768919439815,-352.64193347,0.000185,2]
[402815655,1768919439825,-244.57443698,0.000185,2]
[402815656,1768919439835,-1634.04927308,0.000185,2]
[402815657,1768919439844,-338.66165243,0.000185,2]
[402815658,1768919439854,-2000.0,0.00018589,7]
[402815659,1768919439864,-187.82414902,0.000187,2]
[402815660,1768919439874,-244.57443698,0.000187,2]
[402815661,1768919439884,-352.64193347,0.000187,2]
[402815662,1768919439895,-1634.04927308,0.000187,2]
[402815663,1768919439905,-338.66165243,0.000187,2]
[402815664,1768919439915,-453.70851362,0.0001872,2]
[402815665,1768919439924,-198.0,0.00018773,2]
[402815666,1768919439934,-5000.0,0.00018863,2]
[402815667,1768919439944,-159.62665952,0.00018895,2]
[402815668,1768919439954,-162.23044371,0.00018895,2]
[402815669,1768919439968,-303.10001603,0.000189,2]
[402815670,1768919439978,-303.10001603,0.000189,2]
[402815671,1768919439988,-2603.49,0.00019,2]
[402815672,1768919440003,-17980.14995828,0.00019,2]
[402815673,1768919440013,-303.10001603,0.00019089,2]
[402815675,1768919440023,-303.10001603,0.00019089,2]
[402815677,1768919440033,-300.0,0.000191,2]
[402815678,1768919440047,-500.0,0.00019178,2]
[402815679,1768919440057,-846.0132,0.00019178,2]
[402815680,1768919440067,-846.0132,0.00019178,2]
[402815681,1768919440078,-846.0132,0.00019178,2]
[402815682,1768919440088,-846.0132,0.00019178,2]
[402815683,1768919440098,-846.0132,0.00019178,2]
[402815684,1768919440109,-620.5,0.00019178,2]
[402815685,1768919440120,-846.0132,0.00019178,2]
[402815686,1768919440132,-846.0132,0.00019178,2]
[402815687,1768919440143,-373.2,0.000192,2]
[402815688,1768919440154,-349.28,0.000192,2]
[402815689,1768919440163,-7026.69,0.000192,2]
[402815690,1768919440175,-39601.47,0.000192,2]
[402815691,1768919440185,-167.89,0.000192,2]
[402815692,1768919440195,-307.0,0.000192,2]
[402815693,1768919440205,-1950.0333168,0.00019205,5]
[402815694,1768919440215,-303.10001603,0.00019278,2]
[402815695,1768919440224,-303.10001603,0.00019278,2]
[402815696,1768919440234,-2000.0,0.00019404,7]
[402815697,1768919440244,-303.10001603,0.00019467,2]
[402815698,1768919440259,-303.10001603,0.00019467,2]
[402815699,1768919440270,-159.62665952,0.00019479,2]
[402815700,1768919440281,-195.0,0.00019534,3]
[402815701,1768919440291,-198.0,0.00019551,2]
[402815702,1768919440300,-846.0132,0.00019589,3]
[402815703,1768919440310,-846.0132,0.00019589,3]
[402815704,1768919440319,-846.0132,0.00019589,3]
[402815705,1768919440329,-846.0132,0.00019589,3]
[402815706,1768919440339,-846.0132,0.00019589,3]
[402815707,1768919440349,-807.9768,0.00019589,3]
[402815708,1768919440359,-303.10001603,0.00019656,2]
[402815709,1768919440369,-303.10001603,0.00019656,2]
[402815710,1768919440378,-537.07,0.000197,3]
[402815711,1768919440388,-1518.366042,0.0001984,5]
[402815712,1768919440398,-454.65002405,0.00019845,4]
[402815713,1768919440407,-454.65002405,0.00019845,4]
[402815714,1768919440416,-1000.0,0.0001986,5]
[402815715,1768919440426,-1000.0,0.0001988,5]
[402815716,1768919440435,-1000.0,0.000199,5]
[402815717,1768919440445,-1000.0,0.0001992,5]
[402815718,1768919440454,-1000.0,0.0001994,5]
[402815719,1768919440464,-1000.0,0.0001996,5]
[402815720,1768919440473,-1000.0,0.0001998,5]
[402815722,1768919440483,-882.45,0.0002,2]
[402815723,1768919440492,-1594.0,0.0002,2]
[402815724,1768919440505,-2655.32561793,0.0002,3]
[402815725,1768919440515,-1000.0,0.0002,5]
[402815727,1768919440524,-846.0132,0.0002,4]
[402815728,1768919440534,-300.0,0.0002,2]
[402815729,1768919440543,-846.0132,0.0002,4]
[402815730,1768919440554,-846.0132,0.0002,4]
[402815731,1768919440563,-846.0132,0.0002,4]
[402815732,1768919440572,-250.0,0.0002,10]
[402815733,1768919440582,-1000.0,0.0002,2]
[402815734,1768919440592,-13929.44665599,0.0002,2]
[402815735,1768919440601,-7376.15131969,0.0002,2]
[402815736,1768919440611,-254.12852691,0.0002,21]
[402815737,1768919440620,-40735.78374581,0.0002,2]
[402815738,1768919440629,-371.84503384,0.0002,2]
[402815739,1768919440639,-3294.07435267,0.0002,2]
[402815740,1768919440648,-980.1717281,0.0002,2]
[402815741,1768919440658,-23000.0,0.0002,2]
[402815742,1768919440667,-202.86373622,0.0002,2]
[402815743,1768919440677,-2533.03819427,0.0002,30]
[402815744,1768919440686,-504.60836012,0.0002,2]
[402815745,1768919440696,-454.65002405,0.00020034,4]
[402815746,1768919440705,-454.65002405,0.00020034,4]
[402815747,1768919440715,-500.0,0.000201,7]
[402815748,1768919440724,-250.0,0.000201,10]
[402815749,1768919440733,-2147.0,0.00020182,2]
[402815750,1768919440743,-629.0,0.00020182,2]
[402815751,1768919440757,-417.0,0.00020182,2]
[402815752,1768919440766,-178.0,0.00020182,2]
[402815753,1768919440775,-250.0,0.000202,10]
[402815754,1768919440785,-2000.0,0.00020219,7]
[402815755,1768919440794,-454.65002405,0.00020223,4]
[402815756,1768919440803,-454.65002405,0.00020223,4]
[402815757,1768919440812,-250.0,0.000203,10]
[402815758,1768919440822,-198.0,0.0002033,2]
[402815759,1768919440831,-250.0,0.000204,10]
[402815760,1768919440840,-600.0,0.000204,2]
[402815761,1768919440850,-1500.0,0.00020408,2]
[402815762,1768919440859,-454.65002405,0.00020412,4]
[402815763,1768919440869,-454.65002405,0.00020412,4]
[402815764,1768919440879,-600.0,0.0002044,2]
[402815765,1768919440888,-600.0,0.00020476,2]
[402815766,1768919440898,-1500.0,0.00020483,2]
[402815767,1768919440907,-600.0,0.00020484,2]
[402815768,1768919440917,-239.074128,0.00020497,7]
[402815769,1768919440926,-167.89,0.000205,2]
[402815770,1768919440935,-358.611193,0.000205,7]
[402815771,1768919440945,-250.0,0.000205,10]
[402815772,1768919440954,-7530.24,0.00020547,2]
[402815773,1768919440965,-4424.46546893,0.00020552,2]
[402815774,1768919440978,-349.28,0.000206,2]
[402815775,1768919440989,-7026.69,0.000206,2]
[402815776,1768919441002,-373.2,0.000206,2]
[402815777,1768919441012,-39601.47,0.000206,2]
[402815778,1768919441022,-250.0,0.000206,10]
[402815779,1768919441032,-454.65002405,0.00020601,4]
[402815780,1768919441044,-454.65002405,0.00020601,4]
[402815781,1768919441055,-1390.30550397,0.0002061,2]
[402815782,1768919441064,-500.0,0.0002063,2]
[402815783,1768919441074,-196.0,0.0002063,3]
[402815784,1768919441084,-1500.0,0.00020631,2]
[402815785,1768919441094,-500.0,0.00020643,2]
[402815786,1768919441103,-1500.0,0.0002066,2]
[402815787,1768919441113,-600.0,0.00020672,2]
[402815788,1768919441122,-600.0,0.00020689,2]
[402815789,1768919441132,-500.0,0.0002069,2]
[402815790,1768919441142,-250.0,0.000207,10]
[402815791,1768919441151,-501.18963714,0.0002072,2]
[402815792,1768919441161,-600.0,0.00020724,2]
[402815793,1768919441173,-500.0,0.00020747,2]
[402815794,1768919441183,-1500.0,0.00020751,2]
[402815795,1768919441193,-737.42757816,0.00020767,30]
[402815796,1768919441202,-1500.0,0.00020796,2]
[402815797,1768919441212,-600.0,0.00020799,2]
[402815798,1768919441222,-250.0,0.000208,10]
[402815799,1768919441232,-600.0,0.00020823,2]
[402815800,1768919441242,-1500.0,0.00020824,2]
[402815801,1768919441256,-600.0,0.00020848,2]
[402815802,1768919441266,-1500.0,0.00020873,2]
[402815803,1768919441276,-1500.0,0.00020881,2]
[402815804,1768919441286,-188.742733,0.00020893,7]
[402815805,1768919441295,-250.0,0.000209,10]
[402815806,1768919441304,-256.66289155,0.000209,2]
[402815807,1768919441314,-600.0,0.00020925,2]
[402815808,1768919441323,-737.42757816,0.00020982,30]
[402815809,1768919441332,-500.0,0.00021,7]
[402815810,1768919441342,-250.0,0.00021,10]
[402815811,1768919441351,-10000.0,0.00021,5]
[402815812,1768919441361,-277.55017792,0.00021,2]
[402815813,1768919441371,-1563.43715378,0.00021,10]
[402815814,1768919441381,-50000.0,0.00021,2]
[402815815,1768919441390,-600.0,0.00021025,2]
[402815816,1768919441400,-2000.0,0.00021034,7]
[402815817,1768919441409,-600.0,0.00021044,2]
[402815818,1768919441419,-600.0,0.00021077,2]
[402815819,1768919441428,-600.0,0.00021091,2]
[402815820,1768919441437,-600.0,0.00021093,2]
[402815821,1768919441447,-600.0,0.00021095,2]
[402815822,1768919441456,-600.0,0.00021096,2]
[402815823,1768919441466,-250.0,0.000211,10]
[402815824,1768919441475,-198.0,0.00021108,2]
[402815825,1768919441494,-600.0,0.00021126,2]
[402815826,1768919441506,-600.0,0.00021128,2]
[402815827,1768919441516,-6047.85957025,0.00021129,2]
[402815828,1768919441526,-1500.0,0.00021137,2]
[402815829,1768919441535,-1500.0,0.00021176,2]
[402815830,1768919441545,-737.42757816,0.00021197,30]
[402815831,1768919441555,-15465.65804276,0.000212,30]
[402815832,1768919441564,-1500.0,0.00021209,2]
[402815833,1768919441574,-600.0,0.00021249,2]
[402815834,1768919441584,-600.0,0.00021307,2]
[402815835,1768919441593,-600.0,0.00021351,2]
[402815836,1768919441603,-600.0,0.00021359,2]
[402815837,1768919441614,-600.0,0.00021373,2]
[402815838,1768919441624,-600.0,0.00021406,2]
[402815839,1768919441634,-600.0,0.00021408,2]
[402815840,1768919441644,-737.42757816,0.00021412,30]
[402815841,1768919441653,-1500.0,0.00021434,2]
[402815842,1768919441664,-600.0,0.00021459,2]
[402815843,1768919441674,-1500.0,0.00021468,2]
[402815844,1768919441684,-1500.0,0.00021489,2]
[402815845,1768919441693,-600.0,0.00021497,2]
[402815846,1768919441703,-1040.59113896,0.000215,2]
[402815847,1768919441713,-12871.57492998,0.000215,2]
[402815848,1768919441723,-600.0,0.0002151,2]
[402815849,1768919441733,-280.284,0.00021528,2]
[402815850,1768919441742,-600.0,0.00021529,2]
[402815851,1768919441755,-600.0,0.00021601,2]
[402815852,1768919441765,-1500.0,0.00021613,2]
[402815853,1768919441775,-737.42757816,0.00021627,30]
[402815855,1768919441784,-600.0,0.00021632,2]
[402815856,1768919441794,-167.89,0.000217,2]
[402815857,1768919441803,-600.0,0.000217,2]
[402815858,1768919441813,-600.0,0.00021722,2]
[402815859,1768919441822,-1500.0,0.00021726,2]
[402815860,1768919441832,-198.0,0.00021726,5]
[402815861,1768919441842,-600.0,0.00021729,2]
[402815862,1768919441852,-600.0,0.00021731,2]
[402815863,1768919441862,-600.0,0.00021747,2]
[402815864,1768919441871,-349.28,0.000218,2]
[402815865,1768919441881,-373.2,0.000218,2]
[402815866,1768919441891,-7026.69,0.000218,2]
[402815867,1768919441901,-39601.47,0.000218,2]
[402815868,1768919441911,-600.0,0.00021811,2]
[402815869,1768919441921,-1500.0,0.00021819,2]
[402815870,1768919441931,-330.0,0.00021833,2]
[402815871,1768919441941,-737.42757816,0.00021842,30]
[402815872,1768919441951,-1500.0,0.00021849,2]
[402815873,1768919441965,-2000.0,0.00021849,7]
[402815874,1768919441982,-600.0,0.00021863,2]
[402815875,1768919441992,-198.0,0.00021887,2]
[402815876,1768919442009,-1500.0,0.00021898,2]
[402815877,1768919442021,-1500.0,0.00021903,2]
[402815878,1768919442032,-600.0,0.00021908,2]
[402815879,1768919442042,-1500.0,0.00021909,2]
[402815880,1768919442052,-600.0,0.00021982,2]
[402815881,1768919442062,-600.0,0.0002199,2]
[402815882,1768919442072,-1697.25,0.00022,2]
[402815883,1768919442084,-578.8,0.00022,7]
[402815884,1768919442094,-184.0,0.00022,2]
[402815885,1768919442104,-172.18704626,0.00022,10]
[402815886,1768919442114,-567.66956032,0.00022,14]
[402815887,1768919442124,-774.73219504,0.00022,20]
[402815888,1768919442134,-600.0,0.00022007,2]
[402815889,1768919442144,-902.3596719,0.00022046,2]
[402815890,1768919442154,-737.42757816,0.00022057,30]
[402815891,1768919442164,-1500.0,0.00022069,2]
[402815892,1768919442173,-159.17,0.00022073,2]
[402815893,1768919442183,-600.0,0.00022074,2]
[402815894,1768919442194,-500.0,0.000221,7]
[402815895,1768919442203,-600.0,0.00022127,2]
[402815896,1768919442213,-500.0,0.00022141,2]
[402815897,1768919442223,-1500.0,0.00022183,2]
[402815898,1768919442233,-600.0,0.00022189,2]
[402815899,1768919442243,-600.0,0.00022196,2]
[402815900,1768919442259,-1500.0,0.00022219,2]
[402815901,1768919442268,-243.29712588,0.0002222,2]
[402815902,1768919442278,-1500.0,0.00022225,2]
[402815903,1768919442288,-1500.0,0.00022235,2]
[402815904,1768919442297,-602.92061325,0.00022255,2]
[402815905,1768919442307,-737.42757816,0.00022272,30]
[402815906,1768919442317,-3118.04528553,0.00022321,5]
[402815907,1768919442328,-4038.36728031,0.00022321,5]
[402815908,1768919442338,-1500.0,0.00022334,2]
[402815909,1768919442348,-600.0,0.00022356,2]
[402815910,1768919442358,-1043.40716341,0.00022369,2]
[402815911,1768919442368,-2898.8072169,0.00022385,2]
[402815912,1768919442378,-300.0,0.00022466,2]
[402815913,1768919442387,-200.0,0.00022466,2]
[402815915,1768919442397,-737.42757816,0.00022487,30]
[402815916,1768919442407,-800.0,0.00022494,2]
[402815917,1768919442417,-1034.25866037,0.000225,2]
[402815918,1768919442426,-800.0,0.00022654,2]
[402815919,1768919442435,-2000.0,0.00022664,7]
[402815920,1768919442445,-198.0,0.00022665,2]
[402815921,1768919442455,-737.42757816,0.00022702,30]
[402815922,1768919442464,-548.67076066,0.0002272,2]
[402815923,1768919442474,-800.0,0.00022751,2]
[402815924,1768919442483,-300.0,0.00022807,2]
[402815925,1768919442492,-199.0,0.00022822,8]
[402815926,1768919442507,-737.42757816,0.00022917,30]
[402815927,1768919442517,-1041.66666667,0.00023,3]
[402815928,1768919442528,-1300.0,0.00023,5]
[402815929,1768919442537,-1023.78834759,0.00023,2]
[402815930,1768919442546,-450.0,0.00023014,2]
[402815931,1768919442556,-250.0,0.00023014,2]
[402815938,1768919442762,-167.89,0.000231,7]
[402815939,1768919442772,-578.8,0.000231,7]
[402815940,1768919442782,-500.0,0.000231,7]
[402815941,1768919442791,-8964.69750542,0.00023119,2]
[402815942,1768919442800,-5000.0,0.00023119,2]
[402815943,1768919442810,-5000.0,0.00023119,2]
[402815944,1768919442819,-5000.0,0.00023119,2]
[402815945,1768919442829,-5000.0,0.00023119,2]
[402815946,1768919442838,-737.42757816,0.00023132,30]
[402815947,1768919442849,-1411.562776,0.00023154,2]
[402815948,1768919442858,-629.0,0.00023182,2]
[402815949,1768919442868,-417.0,0.00023182,2]
[402815950,1768919442877,-178.0,0.00023182,2]
[402815951,1768919442886,-800.0,0.00023266,2]
[402815952,1768919442896,-7530.24,0.00023287,4]
[402815953,1768919442906,-1474.75515631,0.00023346,30]
[402815954,1768919442915,-200.0,0.00023357,2]
[402815955,1768919442925,-800.0,0.00023394,2]
[402815956,1768919442934,-198.0,0.00023443,2]
[402815957,1768919442944,-2000.0,0.00023479,7]
[402815958,1768919442953,-800.0,0.0002356,2]
[402815959,1768919442966,-600.0,0.00023562,2]
[402815960,1768919442976,-211.25627413,0.00023562,2]
[402815961,1768919442985,-39601.47,0.000236,2]
[402815962,1768919442995,-800.0,0.00023694,2]
[402815963,1768919443009,-6880.5344056,0.000237,30]
[402815964,1768919443018,-800.0,0.00023782,2]
[402815965,1768919443028,-20000.0,0.000238,60]
[402815966,1768919443038,-800.0,0.00023887,2]
[402815967,1768919443048,-201.0,0.00023918,11]
[402815968,1768919443057,-6047.85957025,0.00023976,2]
[402815969,1768919443067,-7506.29296432,0.00024,60]
[402815970,1768919443077,-1737.46125833,0.00024,2]
[402815971,1768919443086,-466.08366928,0.00024,2]
[402815972,1768919443096,-1021.0,0.00024,2]
[402815973,1768919443105,-1041.66666667,0.00024,7]
[402815974,1768919443114,-1325.16924635,0.0002403,2]
[402815975,1768919443124,-5295.37630842,0.0002403,2]
[402815976,1768919443134,-612.96646219,0.0002403,2]
[402815977,1768919443144,-2451.86584876,0.0002403,2]
[402815978,1768919443154,-5511.18146155,0.0002403,2]
[402815979,1768919443164,-800.0,0.0002404,2]
[402815980,1768919443174,-800.0,0.00024095,2]
[402815981,1768919443184,-750.0,0.0002411,2]
[402815982,1768919443194,-755.5193312,0.00024141,2]
[402815983,1768919443203,-512176.67474429,0.00024142,2]
[402815984,1768919443213,-215.937654,0.00024142,2]
[402815985,1768919443222,-215.937654,0.00024142,2]
[402815986,1768919443232,-151.0,0.00024142,2]
[402815987,1768919443243,-215.937654,0.00024142,2]
[402815988,1768919443255,-151.0,0.00024142,2]
[402815989,1768919443265,-151.0,0.00024142,2]
[402815990,1768919443274,-215.937654,0.00024142,2]
[402815991,1768919443284,-668.916938,0.00024142,2]
[402815992,1768919443294,-151.0,0.00024142,2]
[402815993,1768919443304,-668.916938,0.00024142,2]
[402815994,1768919443314,-668.916938,0.00024142,2]
[402815995,1768919443323,-668.916938,0.00024142,2]
[402815996,1768919443332,-151.0,0.00024142,2]
[402815997,1768919443342,-242.865887,0.00024142,2]
[402815998,1768919443351,-222.138948,0.00024142,2]
[402815999,1768919443360,-151.0,0.00024142,2]
[402816001,1768919443369,-151.0,0.00024142,2]
[402816003,1768919443378,-222.138948,0.00024142,2]
[402816004,1768919443388,-151.0,0.00024142,2]
[402816005,1768919443397,-222.138948,0.00024142,2]
[402816006,1768919443406,-151.0,0.00024142,2]
[402816007,1768919443415,-222.138948,0.00024142,2]
[402816008,1768919443425,-800.0,0.00024154,2]
[402816009,1768919443434,-800.0,0.00024175,2]
[402816010,1768919443444,-27003.06840306,0.000242,2]
[402816011,1768919443453,-198.0,0.00024222,2]
[402816012,1768919443463,-800.0,0.00024285,2]
[402816013,1768919443473,-2000.0,0.00024295,7]
[402816014,1768919443482,-800.0,0.00024495,2]
[402816015,1768919443491,-1334.61496379,0.000245,2]
[402816016,1768919443503,-349.28,0.000245,7]
[402816017,1768919443513,-373.2,0.000245,7]
[402816018,1768919443522,-7026.69,0.000245,14]
[402816019,1768919443532,-578.8,0.000245,7]
[402816020,1768919443542,-1126.0,0.000245,5]
[402816021,1768919443552,-247.1684387,0.00024606,2]
[402816022,1768919443561,-800.0,0.00024638,2]
[402816023,1768919443570,-156904.60467778,0.0002465,2]
[402816024,1768919443579,-514.5205013,0.0002465,2]
[402816025,1768919443588,-900.0,0.00024658,2]
[402816026,1768919443597,-380.0,0.00024658,2]
[402816027,1768919443605,-1697.25,0.000247,2]
[402816028,1768919443614,-1074.14,0.000247,3]
[402816029,1768919443623,-596.15188417,0.0002472,2]
[402816030,1768919443632,-800.0,0.00024767,2]
[402816031,1768919443642,-16839.58417813,0.00024774,2]
[402816032,1768919443652,-3683.4563759,0.00024822,2]
[402816033,1768919443661,-59650.7341239,0.00024822,2]
[402816035,1768919443672,-167.89,0.000249,7]
[402816037,1768919443681,-250.0,0.000249,2]